bitfinex/quotes_ETHUSD_20220215
["timestamp","ask_amount","ask_price","bid_price","bid_amount"]
[1644905401857,0.97253428,3021.6,3021.5,1.22031682]
[1644905402059,0.97253428,3021.6,3021.5,1.22591682]
[1644905402261,0.97253428,3021.6,3021.5,1.22111682]
[1644905402459,0.97253428,3021.6,3021.5,1.22431682]
[1644905402858,0.97253428,3021.6,3021.5,2.06429775]
[1644905403058,0.97253428,3021.6,3021.5,2.06109775]
[1644905403361,0.93733354,3021.6,3021.5,2.52351682]
[1644905403559,0.93733354,3021.6,3021.5,3.79471753]
[1644905403759,0.93733354,3021.6,3021.5,3.79711753]
[1644905404220,0.93733354,3021.6,3021.5,3.79471753]
[1644905404421,0.93733354,3021.6,3021.5,3.79711753]
[1644905404621,0.93733354,3021.6,3021.5,3.79551753]
[1644905404825,0.93733354,3021.6,3021.5,2.53711682]
[1644905405025,0.93733354,3021.6,3021.5,2.53791682]
[1644905405227,0.93733354,3021.6,3021.5,3.79551753]
[1644905405423,0.93733354,3021.6,3021.5,2.53711682]
[1644905405623,0.93733354,3021.6,3021.5,2.53951682]
[1644905405823,0.93733354,3021.6,3021.5,2.54111682]
[1644905406025,0.93733354,3021.6,3021.5,5.3470933]
[1644905406222,0.93733354,3021.6,3021.5,2.53951682]
[1644905406423,0.93733354,3021.6,3021.5,2.53471682]
[1644905406623,0.93733354,3021.6,3021.5,2.53951682]
[1644905406825,0.93733354,3021.6,3021.5,2.53631682]
[1644905407228,0.93733354,3021.6,3021.5,2.53951682]
[1644905407429,0.93733354,3021.6,3021.5,2.53711682]
[1644905407962,0.93733354,3021.6,3021.5,2.53471682]
[1644905408168,0.93733354,3021.6,3021.5,2.53871682]
[1644905408361,0.93733354,3021.6,3021.5,2.53471682]
[1644905408763,0.93733354,3021.6,3021.5,2.53231682]
[1644905408964,0.93733354,3021.6,3021.5,2.53151682]
[1644905409165,0.93733354,3021.6,3021.5,2.53071682]
[1644905409366,0.93733354,3021.6,3021.5,2.52911682]
[1644905409565,0.93733354,3021.6,3021.5,2.52831682]
[1644905409767,0.93733354,3021.6,3021.5,3.36301927]
[1644905409968,0.93733354,3021.6,3021.5,3.37021927]
[1644905410168,0.93733354,3021.6,3021.5,2.52591682]
[1644905410568,0.93733354,3021.6,3021.5,2.53231682]
[1644905410767,0.93733354,3021.6,3021.5,2.45492]
[1644905410967,0.93733354,3021.6,3021.5,2.53231766]
[1644905411169,0.93733354,3021.6,3021.5,2.52511766]
[1644905411610,0.74764025,3021.6,3021.5,1.23231766]
[1644905411806,0.74764025,3021.6,3021.5,1.52431766]
[1644905412006,0.74764025,3021.6,3021.5,2.06159944]
[1644905412206,0.74764025,3021.6,3021.5,2.06319944]
[1644905412406,0.74764025,3021.6,3021.5,2.06079944]
[1644905412610,0.74764025,3021.6,3021.5,1.93359944]
[1644905413009,0.74764025,3021.6,3021.5,2.05999944]
[1644905413208,0.74764025,3021.6,3021.5,2.05919944]
[1644905413509,0.74764025,3021.6,3021.5,1.93359944]
[1644905413713,0.74764025,3021.6,3021.5,2.05919944]
[1644905413914,0.74764025,3021.6,3021.5,2.05999944]
[1644905414410,0.74764025,3021.6,3021.5,1.93359944]
[1644905414610,0.74764025,3021.6,3021.5,1.09551766]
[1644905414811,0.74764025,3021.6,3021.5,2.0610394]
[1644905415215,0.74764025,3021.6,3021.5,2.0594394]
[1644905415453,0.74764025,3021.6,3021.5,1.9338394]
[1644905415653,0.74764025,3021.6,3021.5,2.0586394]
[1644905415860,0.74764025,3021.6,3021.5,1.22111766]
[1644905416155,0.74764025,3021.6,3021.5,1.09551766]
[1644905416856,0.74764025,3021.6,3021.5,1.22031766]
[1644905417054,0.74764025,3021.6,3021.5,1.09551766]
[1644905420906,0.74764025,3021.6,3021.5,1.93389342]
[1644905421310,0.74764025,3021.6,3021.5,2.67840632]
[1644905421508,0.74764025,3021.6,3021.5,1.96723056]
[1644905421707,0.74764025,3021.6,3021.5,1.97123056]
[1644905421907,0.74764025,3021.6,3021.5,1.97203056]
[1644905422310,0.74764025,3021.6,3021.5,1.97523056]
[1644905422508,0.74764025,3021.6,3021.5,1.97203056]
[1644905422709,0.74764025,3021.6,3021.5,1.97603056]
[1644905422956,0.74764025,3021.6,3021.5,1.97683056]
[1644905423154,0.74764025,3021.6,3021.5,1.97283056]
[1644905423453,0.74764025,3021.6,3021.5,1.97683056]
[1644905423657,0.09196398,3021.6,3021.5,3.27283056]
[1644905423857,9.1128,3022.6,3021.8,1.02503]
[1644905424056,9.1128,3022.6,3022.4,0.198]
[1644905424057,1.37487978,3022.5,3022.4,0.198]
[1644905424455,1.37487978,3022.7,3022.5,0.198]
[1644905424657,3.58880436,3023.1,3022.5,0.82671219]
[1644905424956,1.37472654,3023.0,3022.7,0.198]
[1644905425157,1.37472654,3023.0,3022.9,0.19399564]
[1644905425359,1.37472654,3023.0,3022.9,0.2641933]
[1644905425561,0.0093632,3023.2,3022.9,0.2641933]
[1644905425562,1.37472654,3023.1,3022.9,0.2641933]
[1644905425758,1.37472654,3023.1,3023.0,0.07019766]
[1644905426714,1.37472654,3023.1,3023.0,1.0911433]
[1644905427716,4.67472654,3023.1,3023.0,1.0911433]
[1644905429215,4.67472654,3023.1,3023.0,0.2641933]
[1644905435508,4.67472654,3023.1,3022.7,0.82704]
[1644905435712,3.3,3023.1,3022.7,0.82704]
[1644905437109,3.30760044,3023.1,3022.7,0.82704]
[1644905437710,3.30760044,3023.1,3022.7,3.99743877]
[1644905437953,3.30760044,3023.1,3022.7,0.82704]
[1644905438155,3.3,3023.1,3022.7,0.82704]
[1644905438357,3.30760044,3023.1,3022.7,0.82704]
[1644905439354,2.85447552,3023.1,3022.7,3.98782947]
[1644905439557,2.86207596,3023.1,3022.7,4.81479947]
[1644905439756,2.86207596,3023.1,3022.8,0.82692]
[1644905439955,2.86207596,3023.1,3022.8,1.5710633]
[1644905440161,2.86207596,3023.1,3022.8,1.8710633]
[1644905440557,2.85447552,3023.1,3022.8,1.8710633]
[1644905440755,2.86207596,3023.1,3022.8,1.8710633]
[1644905440959,0.00398434,3023.0,3022.8,2.6979633]
[1644905441356,0.00398434,3023.0,3022.9,0.82689]
[1644905441611,2.8660603,3023.1,3022.9,0.82689]
[1644905441812,2.85845986,3023.1,3022.9,0.82689]
[1644905442010,2.8660603,3023.1,3022.9,0.82689]
[1644905442611,0.0093632,3023.2,3023.1,0.82678]
[1644905442814,0.03039721,3023.6,3023.2,5.4]
[1644905443017,0.01,3023.7,3023.2,6.143979]
[1644905443211,0.01,3023.7,3023.3,0.96825]
[1644905443412,0.01,3023.7,3023.3,2.26425]
[1644905443616,0.01,3023.7,3023.4,0.1264]
[1644905443811,0.01,3023.7,3023.4,1.78368]
[1644905444010,0.01,3023.7,3023.5,0.7438963]
[1644905444214,0.01,3023.7,3023.5,1.1798963]
[1644905444412,0.01,3023.7,3023.6,0.1288]
[1644905444613,0.01,3023.7,3023.6,0.1296]
[1644905444812,0.01,3023.7,3023.6,3.48272972]
[1644905445011,0.01,3023.7,3023.6,4.31007972]
[1644905445212,0.01,3023.7,3023.6,4.61007972]
[1644905445458,0.01,3023.7,3023.6,4.61327972]
[1644905445655,0.01,3023.7,3023.6,4.60767972]
[1644905446057,0.01,3023.7,3023.6,4.48127972]
[1644905446259,0.01,3023.7,3023.6,4.60607972]
[1644905446455,0.01,3023.7,3023.6,4.60927972]
[1644905446660,0.01,3023.7,3023.6,4.61087972]
[1644905446858,0.01,3023.7,3023.6,4.61407972]
[1644905447060,0.0342129,3024.3,3023.9,0.82661]
[1644905447859,0.00389168,3024.3,3023.9,0.82661]
[1644905448459,0.00389168,3024.3,3024.0,0.82657]
[1644905450417,3.31145417,3024.3,3024.0,0.82657]
[1644905450617,0.0257863,3024.2,3024.0,0.82657]
[1644905451817,0.0257863,3024.2,3024.0,1.12657]
[1644905454867,0.0257863,3024.2,3024.0,1.25057]
[1644905455059,0.0257863,3024.2,3024.0,1.12657]
[1644905455457,0.0257863,3024.2,3024.0,1.9992294]
[1644905455758,0.0257863,3024.2,3024.1,0.07015182]
[1644905456358,0.0257863,3024.2,3024.1,0.19575182]
[1644905456632,3.2757863,3024.3,3024.2,1.5702996]
[1644905456827,3.2757863,3024.3,3024.2,4.94430674]
[1644905457028,3.2757863,3024.3,3024.2,5.36830674]
[1644905457228,3.2757863,3024.3,3024.2,4.50048714]
[1644905457429,3.2757863,3024.3,3024.2,4.62448714]
[1644905457728,3.2757863,3024.3,3024.2,1.32143182]
[1644905457927,3.2757863,3024.3,3024.2,1.32623182]
[1644905458129,3.2757863,3024.3,3024.2,1.32303182]
[1644905458328,3.2757863,3024.3,3024.2,4.47328603]
[1644905458527,3.2757863,3024.3,3024.2,4.47888603]
[1644905458727,3.2757863,3024.3,3024.2,1.32703182]
[1644905459135,3.2757863,3024.3,3024.2,4.32613632]
[1644905459330,3.2757863,3024.3,3024.2,4.55097911]
[1644905459529,2.94572139,3024.3,3024.2,4.42537911]
[1644905460029,2.94572139,3024.3,3024.2,4.55337911]
[1644905460229,2.94572139,3024.3,3024.2,4.55017911]
[1644905460455,2.94572139,3024.3,3024.2,1.19663182]
[1644905460655,2.94572139,3024.3,3024.2,4.38248374]
[1644905460854,2.94572139,3024.3,3024.2,1.19663182]
[1644905461057,2.94572139,3024.3,3024.2,1.32303182]
[1644905461254,2.94572139,3024.3,3024.2,4.45869082]
[1644905461456,2.94572139,3024.3,3024.2,4.58429082]
[1644905461658,2.94572139,3024.3,3024.2,2.32703182]
[1644905461856,2.94572139,3024.3,3024.2,2.19663182]
[1644905462055,2.94572139,3024.3,3024.2,5.57554767]
[1644905462357,2.94572139,3024.3,3024.2,5.58194767]
[1644905462555,2.94572139,3024.3,3024.2,2.32463182]
[1644905462757,2.94572139,3024.3,3024.2,5.61544653]
[1644905462956,2.94572139,3024.3,3024.2,2.32783182]
[1644905463157,2.94572139,3024.3,3024.2,2.32863182]
[1644905463357,2.94572139,3024.3,3024.2,2.32383182]
[1644905463557,2.94572139,3024.3,3024.2,2.32463182]
[1644905463758,2.94572139,3024.3,3024.2,2.32383182]
[1644905463959,2.94572139,3024.3,3024.2,2.32783182]
[1644905464208,2.94572139,3024.3,3024.2,5.65370928]
[1644905464405,2.94572139,3024.3,3024.2,5.65450928]
[1644905464605,2.94572139,3024.3,3024.2,5.59611244]
[1644905464809,2.94572139,3024.3,3024.2,5.59371244]
[1644905465007,2.94572139,3024.3,3024.2,5.59771244]
[1644905465207,2.94572139,3024.3,3024.2,5.52523377]
[1644905465407,2.94572139,3024.3,3024.2,2.32543182]
[1644905465607,2.94572139,3024.3,3024.2,2.32863182]
[1644905465808,2.94572139,3024.3,3024.2,2.33023182]
[1644905466011,2.94572139,3024.3,3024.2,2.32463182]
[1644905466207,2.94572139,3024.3,3024.2,2.32943182]
[1644905466409,2.94572139,3024.3,3024.2,2.32623182]
[1644905466713,2.94572139,3024.3,3024.2,2.32463182]
[1644905466909,2.94572139,3024.3,3024.2,5.67690199]
[1644905467113,2.94572139,3024.3,3024.2,5.61406448]
[1644905467312,2.94572139,3024.3,3024.2,2.32543182]
[1644905467512,2.94572139,3024.3,3024.2,2.32623182]
[1644905467712,2.94572139,3024.3,3024.2,2.32783182]
[1644905467957,2.94572139,3024.3,3024.2,2.32943182]
[1644905468357,2.94572139,3024.3,3024.2,2.33023182]
[1644905468558,2.94572139,3024.3,3024.2,2.32383182]
[1644905468757,2.94572139,3024.3,3024.2,5.69155197]
[1644905469157,2.94572139,3024.3,3024.2,5.69315197]
[1644905469362,2.94572139,3024.3,3024.2,2.32543182]
[1644905469557,2.94572139,3024.3,3024.2,2.32703182]
[1644905469758,2.94572139,3024.3,3024.2,2.32543182]
[1644905469957,2.94572139,3024.3,3024.2,2.32863182]
[1644905470158,2.94572139,3024.3,3024.2,2.33183182]
[1644905470359,2.94572139,3024.3,3024.2,5.62638105]
[1644905470561,2.94572139,3024.3,3024.2,5.62478105]
[1644905470760,2.94572139,3024.3,3024.2,5.62558105]
[1644905470960,2.94572139,3024.3,3024.2,5.62958105]
[1644905471160,2.94572139,3024.3,3024.2,5.62558105]
[1644905471362,2.94572139,3024.3,3024.2,6.37419145]
[1644905471604,2.94572139,3024.3,3024.2,6.37339145]
[1644905471805,2.94572139,3024.3,3024.2,6.37499145]
[1644905472009,2.94572139,3024.3,3024.2,6.37419145]
[1644905472204,2.94572139,3024.3,3024.2,6.37659145]
[1644905472404,2.94572139,3024.3,3024.2,3.07164222]
[1644905472705,2.94572139,3024.3,3024.2,6.36394867]
[1644905472906,2.94572139,3024.3,3024.2,6.35834867]
[1644905473105,2.94572139,3024.3,3024.2,6.36874867]
[1644905473306,2.94572139,3024.3,3024.2,6.36474867]
[1644905473505,2.94572139,3024.3,3024.2,6.36074867]
[1644905473706,2.94572139,3024.3,3024.2,6.36474867]
[1644905473906,2.94572139,3024.3,3024.2,6.36394867]
[1644905474106,2.94572139,3024.3,3024.2,3.07484222]
[1644905474308,2.94572139,3024.3,3024.2,6.40858398]
[1644905474509,2.94572139,3024.3,3024.2,6.40938398]
[1644905474706,2.94572139,3024.3,3024.2,6.40698398]
[1644905475108,2.94572139,3024.3,3024.2,6.40298398]
[1644905475357,2.94572139,3024.3,3024.2,6.40218398]
[1644905475558,2.94572139,3024.3,3024.2,1.32303182]
[1644905475759,2.94572139,3024.3,3024.2,1.02143182]
[1644905475961,2.94572139,3024.3,3024.2,0.89663182]
[1644905476160,0.00540196,3024.7,3024.2,0.89663182]
[1644905476360,7.49549436,3024.8,3024.3,0.07015182]
[1644905476561,0.01080392,3024.8,3024.4,0.82652]
[1644905476961,0.01080392,3024.8,3024.5,0.07014587]
[1644905477170,0.01080392,3024.8,3024.6,0.07014423]
[1644905477363,0.01080392,3024.8,3024.3,1.65302]
[1644905477564,0.01080392,3024.8,3024.6,0.82647]
[1644905479629,0.00972353,3024.8,3024.6,0.82647]
[1644905482036,0.00972353,3024.8,3024.6,1.65288]
[1644905482236,0.00972353,3024.8,3024.7,0.8264]
[1644905482642,0.00972353,3024.8,3024.7,1.1264]
[1644905484859,3.30972353,3024.8,3024.7,1.1264]
[1644905485065,3.31188431,3024.8,3024.7,4.44809811]
[1644905485661,3.31188431,3024.8,3024.7,1.1264]
[1644905487714,3.26188431,3024.8,3024.7,1.1264]
[1644905490368,3.26188431,3024.8,3024.7,0.8264]
[1644905490862,3.26188431,3024.8,3024.7,1.1264]
[1644905491065,3.26188431,3024.8,3024.7,0.8264]
[1644905491263,3.26188431,3024.8,3024.7,1.1264]
[1644905493666,3.26188431,3024.8,3024.7,4.28107969]
[1644905493867,3.26188431,3024.8,3024.7,1.1264]
[1644905494313,3.26188431,3024.8,3024.7,4.285616]
[1644905495815,3.26188431,3024.8,3024.7,1.1264]
[1644905496015,3.26188431,3024.8,3024.7,0.8264]
[1644905496217,3.26188431,3024.8,3024.7,1.1264]
[1644905497617,3.26188431,3024.8,3024.7,1.19653634]
[1644905499763,2.93569588,3024.8,3024.7,1.19653634]
[1644905500664,2.93569588,3024.8,3024.7,1.82524853]
[1644905501162,2.89251363,3024.8,3024.7,5.11970071]
[1644905501364,2.42084908,3024.8,3024.7,6.32524853]
[1644905501631,0.03007626,3025.4,3024.9,5.45]
[1644905501831,7.48,3026.0,3025.2,0.62672796]
[1644905502029,1.38505448,3025.9,3025.5,0.6265153]
[1644905502229,0.0081972,3026.1,3025.7,0.6265153]
[1644905502428,1.38506896,3026.0,3025.8,0.475]
[1644905502630,1.38506896,3026.0,3025.8,3.18888564]
[1644905502828,1.38506896,3026.0,3025.9,1.20853634]
[1644905503032,0.0081972,3026.1,3025.9,0.19893634]
[1644905503238,0.0081972,3026.1,3026.0,0.07013634]
[1644905503431,0.0081972,3026.1,3025.9,0.07013634]
[1644905503633,0.0081972,3026.1,3026.0,0.02013634]
[1644905503833,0.0081972,3026.1,3026.0,30.02720634]
[1644905503834,9.72e-05,3026.1,3026.0,30.02720634]
[1644905504035,2.52021049,3027.2,3026.2,19.38]
[1644905504036,0.13239,3027.2,3026.2,19.38]
[1644905504233,0.02082056,3027.2,3026.4,19.38]
[1644905504434,0.02082056,3027.2,3026.5,3.51401164]
[1644905504435,0.04206334,3026.8,3026.5,3.51401164]
[1644905504637,0.04206334,3026.8,3026.5,1.775]
[1644905504833,0.02082056,3027.2,3026.6,0.14]
[1644905504834,0.04149492,3026.7,3026.6,0.14]
[1644905505033,0.04149492,3026.7,3026.6,0.82564]
[1644905505235,0.04149492,3026.7,3026.6,1.12564]
[1644905505864,0.04149492,3026.7,3026.3,0.1272]
[1644905506060,0.04149492,3026.7,3026.6,0.82589]
[1644905506259,0.02082056,3026.7,3026.6,0.82589]
[1644905507060,0.02082056,3026.7,3026.6,1.12589]
[1644905507461,0.02082056,3026.7,3026.6,1.25389]
[1644905507661,3.32082056,3026.7,3026.6,0.95469]
[1644905507862,3.32082056,3026.7,3026.6,0.82589]
[1644905508262,3.32082056,3026.7,3026.6,1.25309]
[1644905508466,3.32082056,3026.7,3026.6,1.12589]
[1644905508666,3.32082056,3026.7,3026.6,0.82589]
[1644905508863,3.32082056,3026.7,3026.5,0.424]
[1644905509110,3.32082056,3026.7,3026.5,0.1248]
[1644905509312,0.04092649,3026.6,3026.5,0.1256]
[1644905509509,0.04092649,3026.6,3026.5,0.1248]
[1644905509710,0.04092649,3026.6,3026.5,0.1272]
[1644905510111,0.04092649,3026.6,3026.4,2.07574]
[1644905510310,0.06174705,3026.6,3026.5,0.124]
[1644905510512,0.04035807,3026.5,3026.4,1.95174]
[1644905510913,0.04035807,3026.5,3026.4,0.3]
[1644905511117,0.04035807,3026.5,3025.9,0.132]
[1644905511314,0.06117863,3026.5,3025.9,0.1304]
[1644905511511,0.06117863,3026.5,3025.6,0.3748]
[1644905511710,0.06117863,3026.5,3025.4,2.15228]
[1644905511911,0.06117863,3026.5,3025.5,0.1248]
[1644905512112,0.06117863,3026.5,3025.9,0.5]
[1644905512513,0.06117863,3026.5,3025.8,1.65209]
[1644905512714,0.06117863,3026.5,3025.4,0.1408]
[1644905512957,0.06117863,3026.5,3025.3,3.6296]
[1644905513157,0.06117863,3026.5,3025.3,0.1336]
[1644905513358,0.88730863,3026.5,3025.4,0.1328]
[1644905513557,0.88730863,3026.5,3025.6,0.82617]
[1644905513764,0.90943358,3026.3,3025.6,0.82617]
[1644905514159,0.00741407,3026.2,3025.6,0.82617]
[1644905514359,0.84999497,3026.2,3025.6,0.82617]
[1644905514558,1.67620497,3026.2,3025.6,0.82617]
[1644905515157,3.15779517,3026.2,3025.3,0.6264]
[1644905515360,0.83362437,3026.1,3025.4,0.82622]
[1644905515560,3.98608823,3026.1,3025.4,0.82622]
[1644905516363,3.99506856,3026.1,3025.4,0.82622]
[1644905516611,0.00741407,3025.9,3025.4,0.82622]
[1644905517513,0.00392487,3026.0,3025.4,0.82622]
[1644905517714,0.00741407,3025.8,3025.4,0.82622]
[1644905518714,0.84652067,3026.1,3025.4,0.82622]
[1644905518715,0.84655927,3026.1,3025.4,0.82622]
[1644905518919,0.00741407,3025.8,3025.4,0.82622]
[1644905519414,0.00741407,3025.8,3025.2,1.66202626]
[1644905519815,0.00602248,3025.8,3025.2,1.66202626]
[1644905520016,1.668941,3026.1,3025.2,1.65238]
[1644905520017,1.0,3026.0,3025.2,1.65238]
[1644905520217,0.00392487,3025.8,3024.9,1.65254]
[1644905520464,1.06447724,3025.3,3024.9,1.65254]
[1644905520669,1.06447724,3025.3,3024.7,1.65267]
[1644905520670,0.00392487,3025.2,3024.7,1.65267]
[1644905520863,0.00392487,3025.2,3024.2,0.374]
[1644905520864,0.82652,3025.1,3024.2,0.374]
[1644905521067,0.82652,3025.1,3024.2,0.1296]
[1644905521263,0.82652,3025.1,3024.1,3.5115153]
[1644905521466,0.82652,3025.1,3024.8,0.00743622]
[1644905522064,1.653079,3025.1,3024.8,0.00743622]
[1644905522264,1.653079,3025.1,3024.5,0.82646]
[1644905522464,0.826559,3025.1,3024.5,0.82646]
[1644905522764,0.826559,3025.1,3024.8,0.00965962]
[1644905523566,0.826559,3025.1,3024.5,0.82646]
[1644905523766,0.826559,3025.1,3024.8,0.00965962]
[1644905523970,0.826559,3025.1,3024.9,0.08487599]
[1644905523971,1.653039,3025.1,3024.9,0.08487599]
[1644905524808,1.653039,3025.1,3025.0,0.08487599]
[1644905525008,1.653039,3025.1,3024.8,0.00965864]
[1644905525209,1.653039,3025.1,3024.9,0.08487599]
[1644905526211,1.653039,3025.1,3024.8,0.00965864]
[1644905526411,1.653039,3025.1,3024.9,0.08487599]
[1644905527212,1.653039,3025.1,3025.0,0.08487599]
[1644905527614,1.653039,3025.1,3024.8,0.00965864]
[1644905527856,1.65308,3025.0,3024.9,0.07612474]
[1644905528658,3.3061552,3025.0,3024.8,0.00965882]
[1644905528857,3.3061552,3025.0,3024.9,0.07612474]
[1644905529757,6.6061552,3025.0,3024.9,0.07612474]
[1644905530661,4.9530752,3025.0,3024.9,0.07612474]
[1644905530858,1.652974,3024.9,3024.8,0.00965882]
[1644905531058,1.652974,3024.9,3024.8,0.08570343]
[1644905531259,0.826484,3024.9,3024.8,0.08570343]
[1644905531910,0.826484,3024.9,3024.8,0.07604461]
[1644905533207,1.652984,3024.9,3024.8,0.07604461]
[1644905533408,1.652984,3024.9,3024.7,0.00965906]
[1644905533609,0.826484,3024.9,3024.8,0.07604461]
[1644905534612,0.826484,3024.9,3024.7,0.00965906]
[1644905534813,0.826484,3024.9,3024.8,0.07604461]
[1644905536678,4.1265,3025.0,3024.8,0.07604461]
[1644905536878,3.3,3025.0,3024.9,0.07604461]
[1644905538578,1.6527858,3025.1,3024.9,0.07604461]
[1644905538781,0.82646,3025.4,3024.8,0.00965882]
[1644905538782,0.00392487,3025.4,3025.0,0.55104461]
[1644905538980,0.00392487,3025.6,3025.1,0.55104461]
[1644905539220,0.00392487,3025.7,3025.2,0.85104461]
[1644905539422,0.00392487,3025.9,3025.3,0.07604461]
[1644905539625,0.00392487,3025.9,3025.4,0.55104461]
[1644905539819,0.12109165,3026.0,3025.5,2.55400461]
[1644905540019,2.4416,3026.3,3025.5,2.55400461]
[1644905540020,2.4416,3026.3,3025.6,0.07604461]
[1644905540319,8.46436286,3026.4,3025.7,0.07604461]
[1644905540519,8.46436286,3026.4,3025.4,0.775]
[1644905540720,8.46436286,3026.4,3025.8,0.82606]
[1644905540920,0.82613,3026.2,3025.7,1.65211]
[1644905541121,8.46436286,3026.4,3025.7,1.65211]
[1644905541431,8.46436286,3026.4,3025.8,0.0745178]
[1644905541619,8.46436286,3026.4,3025.4,0.775]
[1644905541820,0.01862831,3026.1,3025.8,0.82615]
[1644905542868,0.0163944,3026.1,3025.8,0.82615]
[1644905543072,0.02381752,3026.1,3025.8,0.82615]
[1644905543470,0.02381752,3026.1,3025.9,0.07087618]
[1644905544071,0.0163944,3026.1,3025.9,0.07087618]
[1644905544669,0.0163944,3026.1,3025.9,1.65208]
[1644905544874,0.0163944,3026.1,3025.4,0.475]
[1644905545071,0.0163944,3026.1,3025.5,0.07092171]
[1644905545274,0.0163944,3026.1,3025.1,0.1652]
[1644905545275,1.32034413,3026.0,3025.1,0.1652]
[1644905545474,0.83373512,3025.9,3025.3,0.01033966]
[1644905545672,2.14673413,3025.8,3025.4,0.07099615]
[1644905545870,0.82639,3025.8,3025.4,0.07099615]
[1644905546270,0.00742312,3025.9,3025.4,0.07099615]
[1644905546471,0.0163944,3026.1,3025.4,0.07099615]
[1644905546715,0.0163944,3026.1,3025.3,0.01033955]
[1644905546716,0.00742295,3025.8,3025.3,0.01033955]
[1644905547114,0.00742295,3025.8,3025.4,0.07099615]
[1644905547818,0.0163944,3026.1,3025.4,1.07099615]
[1644905548015,0.00742295,3025.8,3025.5,0.07099615]
[1644905548215,0.00742295,3025.8,3025.6,0.82598]
[1644905548515,0.00742295,3025.8,3025.7,0.07099615]
[1644905548913,0.0163944,3026.1,3025.7,0.07099615]
[1644905548914,0.8425549,3026.1,3025.7,0.07099615]
[1644905549215,0.00742312,3025.9,3025.8,0.82617]
[1644905549514,0.00742312,3025.9,3025.8,0.89716615]
[1644905549916,0.00742312,3025.9,3025.8,1.19716615]
[1644905550120,0.0163944,3026.1,3025.8,1.19716615]
[1644905550363,0.0163944,3026.1,3025.9,0.89699615]
[1644905550364,0.00223389,3026.0,3025.9,0.89699615]
[1644905551360,0.0163944,3026.1,3025.9,0.89699615]
[1644905551566,0.02381752,3026.1,3026.0,0.07099615]
[1644905552461,0.0163944,3026.1,3026.0,0.07099615]
[1644905552860,1.6163944,3026.1,3026.0,0.07099615]
[1644905559659,1.6163944,3026.1,3025.9,0.826]
[1644905559660,0.47131807,3026.0,3025.9,0.826]
[1644905559860,0.26254683,3026.0,3025.9,0.826]
[1644905569213,0.26254683,3026.0,3025.8,0.82616]
[1644905569512,0.26254683,3026.0,3025.5,2.2787753]
[1644905569712,0.26254683,3026.0,3025.8,0.3]
[1644905569916,0.26254683,3026.0,3025.9,0.6265153]
[1644905570115,1.62381752,3026.1,3026.0,5.4]
[1644905570414,1.6163944,3026.1,3026.0,6.0176693]
[1644905570613,1.6163944,3026.1,3026.0,7.1512693]
[1644905570813,1.6163944,3026.1,3026.0,7.1520693]
[1644905571014,1.6163944,3026.1,3026.0,7.1496693]
[1644905571319,1.6163944,3026.1,3026.0,7.98362426]
[1644905571515,1.6163944,3026.1,3026.0,7.98202426]
[1644905571719,1.6163944,3026.1,3026.0,7.98282426]
[1644905571918,1.6163944,3026.1,3026.0,7.1440693]
[1644905572119,2.312e-05,3026.2,3026.1,5.45]
[1644905572319,2.312e-05,3026.2,3026.1,9.00838851]
[1644905572517,6.103e-05,3027.3,3026.1,30.94293695]
[1644905572721,6.103e-05,3027.3,3027.0,0.6218792]
[1644905572722,0.00891335,3027.3,3027.0,0.6218792]
[1644905572968,0.00891335,3027.3,3027.1,0.475]
[1644905573171,0.00891335,3027.3,3027.1,0.9134]
[1644905573368,0.00891335,3027.3,3027.2,0.1296]
[1644905573567,0.00891335,3027.3,3027.2,0.6006]
[1644905573773,0.05381881,3027.3,3027.2,1.2200792]
[1644905573973,0.05381881,3027.3,3027.2,0.603]
[1644905574168,0.05381881,3027.3,3027.2,0.6054]
[1644905574367,0.05381881,3027.3,3027.2,0.6046]
[1644905574569,0.05381881,3027.3,3027.2,0.603]
[1644905574770,0.05381881,3027.3,3027.2,1.22087724]
[1644905574969,0.05381881,3027.3,3027.2,4.32588843]
[1644905575169,0.05381881,3027.3,3027.2,1.09687724]
[1644905575370,0.05381881,3027.3,3027.2,0.475]
[1644905575773,0.05381881,3027.3,3027.2,1.6022]
[1644905575970,1.65381881,3027.3,3027.2,4.92503616]
[1644905576170,1.65381881,3027.3,3027.2,1.603]
[1644905576373,1.65381881,3027.3,3027.2,1.5998]
[1644905576623,1.65381881,3027.3,3027.2,1.6014]
[1644905576821,1.65381881,3027.3,3027.2,0.475]
[1644905577025,1.65381881,3027.3,3027.2,0.599]
[1644905577222,0.05381881,3027.3,3027.2,0.475]
[1644905578022,0.05375778,3027.3,3027.2,0.475]
[1644905578219,0.05375778,3027.3,3027.1,2.77655]
[1644905578621,0.04433703,3027.2,3027.1,1.12554]
[1644905579023,0.05318935,3027.2,3027.1,1.12554]
[1644905579624,0.05318935,3027.2,3027.1,1.20239075]
[1644905579825,0.00733035,3027.3,3027.1,1.20239075]
[1644905579826,0.01254062,3027.8,3027.1,0.07685075]
[1644905580026,0.0467869,3027.8,3027.2,0.07685075]
[1644905580224,0.03424628,3027.8,3027.2,0.07685075]
[1644905580661,0.03424628,3027.8,3027.3,0.07685075]
[1644905580866,0.00187492,3027.9,3027.2,2.15]
[1644905581061,0.00187492,3027.9,3027.3,0.07491139]
[1644905581264,0.00187492,3027.9,3027.1,1.65136]
[1644905581563,0.9254236,3027.3,3027.2,0.07490718]
[1644905581770,0.00187492,3027.9,3027.2,0.07490718]
[1644905581964,0.825787,3027.6,3027.2,0.07490718]
[1644905582964,0.825787,3027.6,3026.9,0.82581]
[1644905582965,0.95909864,3027.4,3026.9,0.82581]
[1644905583169,0.8258183,3027.5,3027.0,0.07491278]
[1644905583466,1.6516085,3027.8,3027.0,0.07491278]
[1644905583668,0.00187492,3027.9,3027.1,0.82561]
[1644905584112,0.00187492,3027.9,3027.3,0.82555]
[1644905584713,0.00187492,3027.9,3027.4,0.07479764]
[1644905584915,0.97652457,3027.7,3027.4,0.07479764]
[1644905585113,0.97652457,3027.7,3027.3,0.8257]
[1644905585414,0.97652457,3027.7,3027.4,0.08041932]
[1644905585614,0.00187492,3027.9,3027.4,0.01034668]
[1644905585816,0.00187492,3027.9,3027.5,0.07006869]
[1644905586013,0.02030623,3028.0,3027.5,0.07006869]
[1644905586214,0.01303662,3028.0,3027.5,0.07006869]
[1644905586413,0.01303662,3028.0,3027.6,0.89555869]
[1644905586613,0.01303662,3028.0,3027.7,0.07006869]
[1644905587415,0.01303662,3028.0,3027.8,0.89552869]
[1644905587713,0.01303662,3028.0,3027.8,0.82546]
[1644905588166,0.01303662,3028.0,3027.7,1.95092]
[1644905588566,0.01303662,3028.0,3027.8,0.07006237]
[1644905588767,0.02029434,3028.0,3027.9,0.82551]
[1644905588967,0.02029434,3028.0,3027.7,1.65092]